fUST/lending_fUST_20240620
["ID","MTS","AMOUNT","RATE_DAILY","PERIOD"]
[329985223,1718897442070,-216.10730952,0.00054794,120]
[329985224,1718897442079,-500.0,0.00054794,120]
[329985225,1718897442089,-500.0,0.00054794,120]
[329985226,1718897442099,-441.56306542,0.00054794,120]
[329985227,1718897442108,-500.0,0.00054794,120]
[329985228,1718897442118,-534.29582643,0.00054794,120]
[329985229,1718897442128,-500.0,0.00054794,120]
[329985230,1718897442137,-500.0,0.00054794,120]
[329985231,1718897442146,-502.91981873,0.00054794,120]
[329985232,1718897442156,-500.0,0.00054794,120]
[329985233,1718897442166,-500.0,0.00054794,120]
[329985234,1718897442175,-500.0,0.00054794,120]
[329985235,1718897442184,-500.0,0.00054794,120]
[329985236,1718897442193,-500.0,0.00054794,120]
[329985237,1718897442204,-660.34,0.00054794,120]
[329985238,1718897442214,-504.29694182,0.00054794,120]
[329985239,1718897442223,-500.0,0.00054794,2]
[329985240,1718897442232,-500.0,0.00054794,120]
[329985241,1718897442242,-437.7783306,0.00054794,120]
[329985242,1718897442251,-500.0,0.00054794,120]
[329985243,1718897442260,-593.0882911,0.00054794,120]
[329985244,1718897442270,-500.0,0.00054794,120]
[329985245,1718897442279,-500.0,0.00054794,120]
[329985246,1718897442288,-500.0,0.00054794,120]
[329985247,1718897442297,-500.0,0.00054794,120]
[329985248,1718897442307,-2648.39,0.00054794,120]
[329985249,1718897442316,-500.0,0.00054794,120]
[329985250,1718897442325,-588.69096662,0.00054794,120]
[329985251,1718897442335,-500.0,0.00054794,120]
[329985252,1718897442344,-501.2803781,0.00054794,120]
[329985253,1718897442353,-500.0,0.00054794,120]
[329985254,1718897442363,-500.0,0.00054794,120]
[329985255,1718897442372,-500.0,0.00054794,120]
[329985256,1718897442382,-500.0,0.00054794,120]
[329985257,1718897442391,-500.0,0.00054794,120]
[329985258,1718897442400,-500.0,0.00054794,120]
[329985259,1718897442409,-500.0,0.00054794,120]
[329985260,1718897442418,-500.0,0.00054794,120]
[329985261,1718897442428,-508.73645181,0.00054794,120]
[329985262,1718897442437,-500.0,0.00054794,120]
[329985263,1718897442446,-516.35427236,0.00054794,120]
[329985264,1718897442457,-500.0,0.00054794,120]
[329985265,1718897442466,-500.0,0.00054794,120]
[329985266,1718897442474,-500.0,0.00054794,120]
[329985267,1718897442483,-500.0,0.00054794,120]
[329985268,1718897442492,-524.27997589,0.00054794,120]
[329985269,1718897442502,-502.68712439,0.00054794,120]
[329985270,1718897442511,-987.5,0.00054794,120]
[329985271,1718897442521,-500.0,0.00054794,120]
[329985272,1718897442530,-525.43255345,0.00054794,120]
[329985273,1718897442539,-500.0,0.00054794,120]
[329985274,1718897442548,-500.0,0.00054794,120]
[329985275,1718897442557,-500.11867,0.00054794,120]
[329985276,1718897442567,-500.0,0.00054794,120]
[329985277,1718897442577,-496.92849677,0.00054794,120]
[329985278,1718897442586,-500.0,0.00054794,120]
[329985279,1718897442596,-500.0,0.00054794,120]
[329985280,1718897442605,-526.29441157,0.00054794,120]
[329985281,1718897442615,-507.35335198,0.00054794,120]
[329985282,1718897442625,-504.46455068,0.00054794,120]
[329985283,1718897442634,-500.0,0.00054794,120]
[329985284,1718897442643,-500.0,0.00054794,120]
[329985285,1718897442652,-562.5177361,0.00054794,120]
[329985286,1718897442662,-506.96530486,0.00054794,120]
[329985287,1718897442671,-500.0,0.00054794,120]
[329985288,1718897442680,-500.0,0.00054794,120]
[329985289,1718897442690,-500.0,0.00054794,120]
[329985290,1718897442700,-507.06099125,0.00054794,120]
[329985291,1718897442709,-500.0,0.00054794,120]
[329985292,1718897442718,-277.10452312,0.00054794,120]
[329985293,1718897442728,-500.0,0.00054794,120]
[329985294,1718897442737,-506.89995164,0.00054794,120]
[329985295,1718897442746,-500.0,0.00054794,120]
[329985296,1718897442756,-500.0,0.00054794,120]
[329985297,1718897442771,-500.0,0.00054794,120]
[329985298,1718897442781,-500.0,0.00054794,120]
[329985299,1718897442791,-508.35578759,0.00054794,120]
[329985300,1718897442799,-500.0,0.00054794,120]
[329985301,1718897442810,-500.0,0.00054794,120]
[329985302,1718897442819,-514.49097192,0.00054794,120]
[329985303,1718897442829,-500.0,0.00054794,120]
[329985304,1718897442838,-510.10398228,0.00054794,120]
[329985305,1718897442850,-979.16,0.00054794,2]
[329985306,1718897442860,-628.91,0.00054794,120]
[329985307,1718897442869,-511.91756309,0.00054794,120]
[329985308,1718897442878,-286.15250192,0.00054794,120]
[329985309,1718897442888,-503.31550006,0.00054794,120]
[329985310,1718897442897,-516.83265379,0.00054794,120]
[329985311,1718897442906,-510.54390354,0.00054794,120]
[329985312,1718897442915,-512.03260845,0.00054794,120]
[329985313,1718897442925,-516.61391233,0.00054794,120]
[329985314,1718897442934,-500.0,0.00054794,120]
[329985315,1718897442944,-1592.49,0.00054794,120]
[329985316,1718897442953,-515.85292035,0.00054794,120]
[329985317,1718897442963,-598.87051778,0.00054794,120]
[329985318,1718897442972,-503.62610073,0.00054794,120]
[329985319,1718897442981,-523.61739141,0.00054794,120]
[329985320,1718897442991,-500.0,0.00054794,120]
[329985321,1718897443000,-519.16741731,0.00054794,120]
[329985322,1718897443009,-504.49387885,0.00054794,120]
[329985323,1718897443019,-633.690454,0.00054794,120]
[329985324,1718897443028,-500.0,0.00054794,120]
[329985325,1718897443038,-500.0,0.00054794,120]
[329985326,1718897443047,-503.25376686,0.00054794,120]
[329985327,1718897443056,-500.0,0.00054794,120]
[329985328,1718897443066,-509.02079936,0.00054794,120]
[329985329,1718897443076,-500.0,0.00054794,120]
[329985330,1718897443085,-510.14308289,0.00054794,120]
[329985331,1718897443095,-500.0,0.00054794,120]
[329985332,1718897443104,-500.0,0.00054794,120]
[329985333,1718897443114,-514.62347062,0.00054794,120]
[329985334,1718897443123,-150.36962459,0.00054794,120]
[329985335,1718897443133,-457.27204241,0.00054794,120]
[329985336,1718897443143,-509.24160907,0.00054794,120]
[329985337,1718897443152,-316.99697389,0.00054794,120]
[329985338,1718897443161,-500.0,0.00054794,120]
[329985339,1718897443171,-507.73575482,0.00054794,120]
[329985340,1718897443180,-535.79591694,0.00054794,120]
[329985341,1718897443189,-500.0,0.00054794,120]
[329985342,1718897443199,-500.0,0.00054794,120]
[329985343,1718897443208,-500.0,0.00054794,120]
[329985344,1718897443217,-500.0,0.00054794,120]
[329985345,1718897443227,-500.0,0.00054794,120]
[329985346,1718897443237,-500.0,0.00054794,120]
[329985347,1718897443246,-500.0,0.00054794,120]
[329985348,1718897443255,-502.8554633,0.00054794,120]
[329985349,1718897443264,-500.0,0.00054794,120]
[329985350,1718897443274,-500.0,0.00054794,120]
[329985351,1718897443283,-500.0,0.00054794,120]
[329985352,1718897443292,-500.0,0.00054794,120]
[329985353,1718897443302,-500.0,0.00054794,120]
[329985354,1718897443311,-500.0,0.00054794,120]
[329985355,1718897443320,-504.32063269,0.00054794,120]
[329985356,1718897443330,-505.58056084,0.00054794,120]
[329985357,1718897443339,-506.05277429,0.00054794,120]
[329985358,1718897443349,-513.48660467,0.00054794,120]
[329985359,1718897443358,-1297.44,0.00054794,21]
[329985360,1718897443368,-500.0,0.00054794,120]
[329985361,1718897443378,-500.0,0.00054794,120]
[329985362,1718897443387,-500.0,0.00054794,120]
[329985363,1718897443397,-500.0,0.00054794,120]
[329985364,1718897443406,-500.0,0.00054794,120]
[329985365,1718897443415,-500.0,0.00054794,120]
[329985366,1718897443425,-506.93436528,0.00054794,120]
[329985367,1718897443435,-2378.61,0.00054794,120]
[329985368,1718897443444,-250.0,0.00054794,120]
[329985369,1718897443454,-2502.11,0.00054794,120]
[329985370,1718897443464,-500.0,0.00054794,120]
[329985371,1718897443474,-505.11083335,0.00054794,120]
[329985372,1718897443483,-500.0,0.00054794,120]
[329985373,1718897443493,-500.0,0.00054794,120]
[329985374,1718897443502,-500.0,0.00054794,120]
[329985375,1718897443511,-500.0,0.00054794,120]
[329985376,1718897443521,-450.41169296,0.00054794,120]
[329985377,1718897443531,-500.0,0.00054794,120]
[329985378,1718897443540,-500.0,0.00054794,120]
[329985379,1718897443549,-500.0,0.00054794,120]
[329985380,1718897443559,-500.0,0.00054794,120]
[329985381,1718897443569,-516.43,0.00054794,120]
[329985382,1718897443578,-500.0,0.00054794,120]
[329985383,1718897443587,-500.0,0.00054794,120]
[329985384,1718897443597,-500.0,0.00054794,120]
[329985385,1718897443606,-500.0,0.00054794,120]
[329985386,1718897443615,-500.0,0.00054794,120]
[329985387,1718897443626,-500.0,0.00054794,120]
[329985388,1718897443635,-500.0,0.00054794,120]
[329985389,1718897443644,-500.0,0.00054794,120]
[329985390,1718897443654,-500.0,0.00054794,120]
[329985391,1718897443664,-500.0,0.00054794,120]
[329985392,1718897443674,-500.0,0.00054794,120]
[329985393,1718897443684,-500.0,0.00054794,120]
[329985394,1718897443693,-503.76132719,0.00054794,120]
[329985395,1718897443704,-500.0,0.00054794,120]
[329985396,1718897443713,-502.71221611,0.00054794,120]
[329985397,1718897443723,-500.0,0.00054794,120]
[329985398,1718897443731,-500.0,0.00054794,120]
[329985399,1718897443741,-500.0,0.00054794,120]
[329985400,1718897443751,-500.0,0.00054794,7]
[329985401,1718897443761,-2259.4,0.00054794,120]
[329985402,1718897443774,-500.0,0.00054794,120]
[329985403,1718897443784,-500.0,0.00054794,120]
[329985404,1718897443794,-500.0,0.00054794,120]
[329985405,1718897443804,-1052.92,0.00054794,120]
[329985406,1718897443816,-500.0,0.00054794,120]
[329985407,1718897443826,-500.0,0.00054794,120]
[329985408,1718897443835,-500.0,0.00054794,120]
[329985409,1718897443846,-500.0,0.00054794,120]
[329985410,1718897443855,-500.0,0.00054794,120]
[329985411,1718897443865,-500.0,0.00054794,120]
[329985412,1718897443875,-500.0,0.00054794,120]
[329985413,1718897443885,-500.0,0.00054794,120]
[329985414,1718897443895,-2174.6,0.00054794,120]
[329985415,1718897443905,-2174.6,0.00054794,120]
[329985416,1718897443915,-2174.6,0.00054794,120]
[329985417,1718897443924,-2174.6,0.00054794,120]
[329985418,1718897443934,-2174.6,0.00054794,120]
[329985419,1718897443944,-2174.6,0.00054794,120]
[329985420,1718897443956,-2174.6,0.00054794,120]
[329985421,1718897443965,-2174.6,0.00054794,120]
[329985422,1718897443974,-500.0,0.00054794,120]
[329985426,1718897444066,-500.0,0.00054794,120]
[329985428,1718897444076,-3684.15,0.00054794,120]
[329985431,1718897444086,-500.0,0.00054794,120]
[329985435,1718897444096,-942.99,0.00054794,120]
[329985437,1718897444106,-580.04713733,0.00054794,120]
[329985438,1718897444115,-500.0,0.00054794,120]
[329985439,1718897444125,-564.27,0.00054794,120]
[329985440,1718897444135,-500.0,0.00054794,120]
[329985441,1718897444144,-500.0,0.00054794,120]
[329985442,1718897444154,-500.0,0.00054794,120]
[329985443,1718897444163,-500.0,0.00054794,120]
[329985444,1718897444173,-500.0,0.00054794,120]
[329985445,1718897444183,-500.0,0.00054794,120]
[329985446,1718897444192,-500.0,0.00054794,120]
[329985447,1718897444201,-500.0,0.00054794,120]
[329985448,1718897444210,-2560.07,0.00054794,120]
[329985449,1718897444220,-500.0,0.00054794,120]
[329985450,1718897444230,-500.0,0.00054794,120]
[329985451,1718897444239,-500.0,0.00054794,30]
[329985452,1718897444248,-500.0,0.00054794,120]
[329985453,1718897444258,-266.58840063,0.00054794,120]
[329985454,1718897444267,-953.87,0.00054794,120]
[329985455,1718897444276,-500.0,0.00054794,120]
[329985456,1718897444285,-500.0,0.00054794,60]
[329985457,1718897444295,-500.0,0.00054794,120]
[329985458,1718897444304,-500.0,0.00054794,120]
[329985459,1718897444314,-500.0,0.00054794,120]
[329985460,1718897444323,-500.0,0.00054794,120]
[329985461,1718897444332,-242.4170783,0.00054794,120]
[329985462,1718897444341,-500.0,0.00054794,120]
[329985463,1718897444350,-508.35281408,0.00054794,120]
[329985464,1718897444360,-500.0,0.00054794,120]
[329985465,1718897444369,-500.0,0.00054794,120]
[329985466,1718897444379,-500.0,0.00054794,120]
[329985467,1718897444389,-500.0,0.00054794,120]
[329985468,1718897444398,-500.0,0.00054794,120]
[329985469,1718897444407,-500.0,0.00054794,120]
[329985470,1718897444417,-500.0,0.00054794,120]
[329985471,1718897444427,-500.0,0.00054794,120]
[329985472,1718897444437,-500.0,0.00054794,120]
[329985473,1718897444447,-500.0,0.00054794,120]
[329985474,1718897444458,-505.20883541,0.00054794,120]
[329985475,1718897444468,-500.0,0.00054794,120]
[329985476,1718897444477,-500.0,0.00054794,120]
[329985477,1718897444486,-500.0,0.00054794,120]
[329985478,1718897444495,-519.70721714,0.00054794,120]
[329985479,1718897444505,-500.0,0.00054794,120]
[329985480,1718897444514,-500.0,0.00054794,120]
[329985481,1718897444524,-546.04903319,0.00054794,120]
[329985482,1718897444534,-500.0,0.00054794,120]
[329985483,1718897444544,-500.0,0.00054794,120]
[329985484,1718897444553,-500.0,0.00054794,120]
[329985485,1718897444563,-500.0,0.00054794,120]
[329985486,1718897444573,-500.0,0.00054794,120]
[329985487,1718897444582,-4385.27,0.00054794,120]
[329985488,1718897444592,-589.25,0.00054794,120]
[329985489,1718897444601,-1699.83,0.00054794,120]
[329985490,1718897444610,-23200.6,0.00054794,120]
[329985491,1718897444620,-500.0,0.00054794,120]
[329985492,1718897444630,-500.0,0.00054794,2]
[329985493,1718897444639,-500.0,0.00054794,120]
[329985494,1718897444648,-500.0,0.00054794,120]
[329985495,1718897444658,-500.0,0.00054794,2]
[329985496,1718897444668,-512.15065637,0.00054794,120]
[329985497,1718897444677,-2228.83,0.00054794,120]
[329985498,1718897444687,-500.0,0.00054794,120]
[329985499,1718897444696,-500.0,0.00054794,120]
[329985500,1718897444709,-1000.0,0.00055,120]
[329985501,1718897444719,-1000.0,0.00055,120]
[329985502,1718897444729,-2174.6,0.00055067,120]
[329985503,1718897444742,-2174.6,0.00055067,120]
[329985504,1718897444752,-500.0,0.00055067,120]
[329985505,1718897444762,-500.0,0.00055067,120]
[329985506,1718897444775,-788.73,0.00055068,120]
[329985507,1718897444785,-549.76,0.00055068,120]
[329985508,1718897444794,-500.0,0.00055068,120]
[329985509,1718897444804,-200.0,0.00055068,7]
[329985510,1718897444815,-520.47,0.00055068,120]
[329985511,1718897444824,-518.58279613,0.00055068,120]
[329985512,1718897444834,-500.0,0.00055068,2]
[329985514,1718897444844,-500.0,0.00055068,120]
[329985516,1718897444856,-500.0,0.00055068,60]
[329985518,1718897444866,-517.9455013,0.00055068,120]
[329985520,1718897444875,-500.0,0.00055068,120]
[329985522,1718897444885,-500.0,0.00055068,120]
[329985524,1718897444894,-508.04285117,0.00055068,120]
[329985526,1718897444904,-500.0,0.00055068,120]
[329985528,1718897444913,-506.0264971,0.00055068,120]
[329985530,1718897444922,-500.0,0.00055068,120]
[329985531,1718897444931,-500.0,0.00055068,120]
[329985534,1718897444941,-500.0,0.00055068,120]
[329985535,1718897444951,-506.63225553,0.00055068,120]
[329985537,1718897444961,-660.34,0.00055068,120]
[329985540,1718897444970,-500.0,0.00055068,120]
[329985541,1718897444979,-500.0,0.00055068,120]
[329985544,1718897444989,-2648.39,0.00055068,120]
[329985546,1718897444998,-500.0,0.00055068,120]
[329985548,1718897445007,-500.0,0.00055068,120]
[329985550,1718897445017,-500.0,0.00055068,120]
[329985551,1718897445026,-500.0,0.00055068,120]
[329985552,1718897445035,-500.0,0.00055068,120]
[329985553,1718897445044,-500.0,0.00055068,120]
[329985554,1718897445052,-987.5,0.00055068,120]
[329985555,1718897445061,-500.0,0.00055068,120]
[329985556,1718897445070,-500.0,0.00055068,120]
[329985557,1718897445078,-500.0,0.00055068,120]
[329985558,1718897445087,-500.0,0.00055068,120]
[329985559,1718897445098,-510.77103045,0.00055068,120]
[329985560,1718897445107,-500.0,0.00055068,120]
[329985561,1718897445115,-500.0,0.00055068,120]
[329985562,1718897445124,-458.5184937,0.00055068,120]
[329985563,1718897445134,-318.6087921,0.00055068,120]
[329985564,1718897445143,-500.0,0.00055068,120]
[329985565,1718897445151,-508.03708302,0.00055068,120]
[329985566,1718897445160,-500.0,0.00055068,120]
[329985567,1718897445169,-979.16,0.00055068,2]
[329985568,1718897445178,-628.91,0.00055068,120]
[329985569,1718897445187,-1592.49,0.00055068,120]
[329985570,1718897445196,-500.0,0.00055068,120]
[329985571,1718897445205,-500.0,0.00055068,120]
[329985572,1718897445214,-500.0,0.00055068,120]
[329985573,1718897445223,-500.0,0.00055068,120]
[329985574,1718897445232,-500.0,0.00055068,120]
[329985575,1718897445241,-500.0,0.00055068,120]
[329985576,1718897445249,-500.0,0.00055068,120]
[329985577,1718897445258,-500.0,0.00055068,120]
[329985578,1718897445267,-500.0,0.00055068,120]
[329985579,1718897445276,-500.0,0.00055068,120]
[329985580,1718897445285,-500.0,0.00055068,120]
[329985581,1718897445294,-1297.44,0.00055068,21]
[329985582,1718897445303,-500.0,0.00055068,120]
[329985583,1718897445311,-2378.61,0.00055068,120]
[329985584,1718897445320,-250.0,0.00055068,120]
[329985585,1718897445329,-2502.11,0.00055068,120]
[329985586,1718897445338,-500.0,0.00055068,120]
[329985588,1718897445347,-500.0,0.00055068,120]
[329985590,1718897445356,-500.0,0.00055068,120]
[329985592,1718897445365,-500.0,0.00055068,120]
[329985594,1718897445375,-500.0,0.00055068,120]
[329985596,1718897445384,-500.0,0.00055068,120]
[329985597,1718897445393,-516.43,0.00055068,120]
[329985599,1718897445402,-500.0,0.00055068,120]
[329985601,1718897445412,-500.0,0.00055068,120]
[329985603,1718897445421,-500.0,0.00055068,120]
[329985605,1718897445430,-500.0,0.00055068,120]
[329985607,1718897445439,-522.66443647,0.00055068,120]
[329985609,1718897445449,-500.0,0.00055068,120]
[329985610,1718897445460,-524.40122633,0.00055068,120]
[329985612,1718897445469,-500.0,0.00055068,120]
[329985614,1718897445478,-505.24337153,0.00055068,120]
[329985616,1718897445487,-500.0,0.00055068,120]
[329985617,1718897445496,-500.0,0.00055068,120]
[329985618,1718897445506,-500.0,0.00055068,120]
[329985619,1718897445515,-500.0,0.00055068,7]
[329985620,1718897445524,-2259.4,0.00055068,120]
[329985621,1718897445533,-500.0,0.00055068,120]
[329985622,1718897445543,-500.0,0.00055068,120]
[329985623,1718897445552,-500.0,0.00055068,120]
[329985624,1718897445562,-1052.92,0.00055068,120]
[329985625,1718897445571,-500.0,0.00055068,120]
[329985626,1718897445580,-500.0,0.00055068,120]
[329985627,1718897445590,-500.0,0.00055068,120]
[329985628,1718897445599,-500.0,0.00055068,120]
[329985629,1718897445608,-500.0,0.00055068,120]
[329985630,1718897445618,-589.82225239,0.00055068,120]
[329985631,1718897445628,-500.0,0.00055068,120]
[329985632,1718897445638,-500.0,0.00055068,120]
[329985633,1718897445648,-500.0,0.00055068,120]
[329985634,1718897445657,-3684.15,0.00055068,120]
[329985635,1718897445667,-500.0,0.00055068,120]
[329985636,1718897445676,-942.99,0.00055068,120]
[329985637,1718897445685,-507.53926927,0.00055068,120]
[329985638,1718897445694,-564.27,0.00055068,120]
[329985639,1718897445705,-500.0,0.00055068,120]
[329985640,1718897445714,-500.0,0.00055068,120]
[329985641,1718897445723,-500.0,0.00055068,120]
[329985642,1718897445732,-500.0,0.00055068,120]
[329985643,1718897445742,-500.0,0.00055068,120]
[329985644,1718897445751,-2560.07,0.00055068,120]
[329985645,1718897445766,-500.0,0.00055068,120]
[329985646,1718897445776,-510.14293151,0.00055068,120]
[329985647,1718897445786,-500.0,0.00055068,30]
[329985648,1718897445796,-953.87,0.00055068,120]
[329985649,1718897445810,-500.0,0.00055068,120]
[329985650,1718897445819,-500.0,0.00055068,60]
[329985651,1718897445828,-450.52879653,0.00055068,120]
[329985652,1718897445838,-500.0,0.00055068,120]
[329985653,1718897445851,-510.59625241,0.00055068,120]
[329985654,1718897445861,-500.0,0.00055068,120]
[329985655,1718897445871,-500.0,0.00055068,120]
[329985656,1718897445881,-500.0,0.00055068,120]
[329985657,1718897445890,-500.0,0.00055068,120]
[329985658,1718897445901,-500.0,0.00055068,120]
[329985659,1718897445910,-500.0,0.00055068,120]
[329985660,1718897445921,-500.0,0.00055068,120]
[329985661,1718897445930,-500.0,0.00055068,120]
[329985662,1718897445941,-4385.27,0.00055068,120]
[329985663,1718897445951,-589.25,0.00055068,120]
[329985664,1718897445960,-1699.83,0.00055068,120]
[329985665,1718897445969,-23200.6,0.00055068,120]
[329985666,1718897445978,-500.0,0.00055068,120]
[329985667,1718897445987,-500.0,0.00055068,2]
[329985668,1718897445995,-500.0,0.00055068,120]
[329985669,1718897446005,-500.0,0.00055068,120]
[329985670,1718897446014,-500.0,0.00055068,2]
[329985671,1718897446024,-2228.83,0.00055068,120]
[329985672,1718897446034,-2174.6,0.00055341,120]
[329985673,1718897446043,-500.0,0.00055341,120]
[329985674,1718897446053,-788.73,0.00055342,120]
[329985675,1718897446064,-549.76,0.00055342,120]
[329985676,1718897446073,-200.0,0.00055342,7]
[329985677,1718897446083,-520.47,0.00055342,120]
[329985678,1718897446092,-500.0,0.00055342,2]
[329985679,1718897446102,-500.0,0.00055342,60]
[329985680,1718897446111,-500.0,0.00055342,120]
[329985681,1718897446120,-185.11442688,0.00055342,120]
[329985682,1718897446130,-503.82409226,0.00055342,120]
[329985683,1718897446139,-525.52391212,0.00055342,120]
[329985684,1718897446149,-500.0,0.00055342,120]
[329985685,1718897446240,-500.0,0.00055342,120]
[329985686,1718897446250,-660.34,0.00055342,120]
[329985687,1718897446260,-500.0,0.00055342,120]
[329985688,1718897446271,-500.0,0.00055342,120]
[329985689,1718897446280,-2648.39,0.00055342,120]
[329985690,1718897446290,-256.06370098,0.00055342,120]
[329985691,1718897446300,-500.0,0.00055342,120]
[329985692,1718897446309,-500.0,0.00055342,120]
[329985693,1718897446319,-500.0,0.00055342,120]
[329985694,1718897446328,-500.0,0.00055342,120]
[329985695,1718897446338,-515.18669322,0.00055342,120]
[329985696,1718897446348,-987.5,0.00055342,120]
[329985697,1718897446358,-500.0,0.00055342,120]
[329985698,1718897446368,-500.0,0.00055342,120]
[329985699,1718897446377,-500.0,0.00055342,120]
[329985700,1718897446387,-382.96586553,0.00055342,120]
[329985701,1718897446396,-649.0902292,0.00055342,120]
[329985702,1718897446406,-500.0,0.00055342,120]
[329985703,1718897446415,-366.48415421,0.00055342,120]
[329985704,1718897446424,-979.16,0.00055342,2]
[329985705,1718897446434,-628.91,0.00055342,120]
[329985706,1718897446443,-1592.49,0.00055342,120]
[329985707,1718897446454,-500.0,0.00055342,120]
[329985708,1718897446464,-500.0,0.00055342,120]
[329985709,1718897446473,-500.0,0.00055342,120]
[329985710,1718897446482,-500.0,0.00055342,120]
[329985711,1718897446491,-504.54144743,0.00055342,120]
[329985712,1718897446500,-500.0,0.00055342,120]
[329985713,1718897446510,-500.0,0.00055342,120]
[329985714,1718897446519,-500.0,0.00055342,120]
[329985715,1718897446528,-500.0,0.00055342,120]
[329985716,1718897446538,-512.68982664,0.00055342,120]
[329985717,1718897446547,-500.0,0.00055342,120]
[329985718,1718897446557,-1297.44,0.00055342,21]
[329985719,1718897446566,-540.21136308,0.00055342,120]
[329985720,1718897446575,-250.0,0.00055342,120]
[329985721,1718897446584,-2378.61,0.00055342,120]
[329985722,1718897446594,-2502.11,0.00055342,120]
[329985723,1718897446603,-500.0,0.00055342,120]
[329985724,1718897446613,-507.45609641,0.00055342,120]
[329985725,1718897446622,-500.0,0.00055342,120]
[329985726,1718897446632,-500.0,0.00055342,120]
[329985727,1718897446641,-500.0,0.00055342,120]
[329985728,1718897446651,-500.0,0.00055342,120]
[329985729,1718897446660,-516.43,0.00055342,120]
[329985730,1718897446671,-500.0,0.00055342,120]
[329985731,1718897446680,-500.0,0.00055342,120]
[329985732,1718897446689,-505.03015383,0.00055342,120]
[329985733,1718897446699,-274.16615473,0.00055342,120]
[329985734,1718897446709,-500.0,0.00055342,120]
[329985735,1718897446718,-500.0,0.00055342,120]
[329985736,1718897446727,-500.0,0.00055342,120]
[329985737,1718897446736,-500.0,0.00055342,120]
[329985738,1718897446746,-500.0,0.00055342,7]
[329985739,1718897446755,-2259.4,0.00055342,120]
[329985740,1718897446768,-532.52047771,0.00055342,120]
[329985741,1718897446778,-500.0,0.00055342,120]
[329985742,1718897446787,-523.54671879,0.00055342,120]
[329985743,1718897446797,-1052.92,0.00055342,120]
[329985744,1718897446806,-500.0,0.00055342,120]
[329985745,1718897446818,-549.43068168,0.00055342,120]
[329985746,1718897446827,-500.0,0.00055342,120]
[329985747,1718897446836,-500.0,0.00055342,120]
[329985748,1718897446846,-500.0,0.00055342,120]
[329985749,1718897446855,-500.0,0.00055342,120]
[329985750,1718897446865,-500.0,0.00055342,120]
[329985751,1718897446874,-518.7521664,0.00055342,120]
[329985752,1718897446883,-3684.15,0.00055342,120]
[329985753,1718897446893,-507.35167163,0.00055342,120]
[329985754,1718897446903,-942.99,0.00055342,120]
[329985755,1718897446912,-564.27,0.00055342,120]
[329985756,1718897446921,-500.0,0.00055342,120]
[329985757,1718897446930,-500.0,0.00055342,120]
[329985758,1718897446939,-500.0,0.00055342,120]
[329985759,1718897446948,-500.0,0.00055342,120]
[329985760,1718897446959,-500.0,0.00055342,120]
[329985761,1718897446968,-2560.07,0.00055342,120]
[329985762,1718897446977,-500.0,0.00055342,120]
[329985763,1718897446987,-503.40785745,0.00055342,30]
[329985764,1718897446996,-953.87,0.00055342,120]
[329985765,1718897447005,-391.11443703,0.00055342,120]